Cogmind - Beta 15 @@@ ROGUE MODE // 2025.08.17 @ 13:14:16 Player: Kuelos Result: Destroyed by 8E-MRM(R) with Subdweller Laser Performance ------------- Evolutions (0) 0 Regions Visited (2) 400 Robots Destroyed (27) 135 Value Destroyed (672) 672 Prototype IDs (0) 0 Alien Tech Used (0) 0 Bonus (0) 0 TOTAL SCORE: 1207 Bonus ------- None Cogmind --------- Core Integrity 0/250 Matter 299/300 Energy 250/250 System Corruption 0% Temperature Cool (6) Movement Walking (120) Location -10/Subcaves Parts ------- > --- POWER (1) -------- Ion Engine > --- PROPULSION (2) --- Improved Aluminum Leg > --- UTILITY (2) ------ Sensor Array Targeting Computer > --- WEAPON (2) ------- (None) > --- INVENTORY (5) ---- Large Battery (200) Improved Terrain Scanner Power Shielding Datajack Peak State ------------ > --- POWER ------------ Ion Engine > --- PROPULSION ------- Improved Aluminum Leg Improved Aluminum Leg > --- UTILITY ---------- Large Battery Improved Terrain Scanner > --- WEAPON ----------- Heavy EM Pulse Gun Heavy EM Pulse Gun > --- INVENTORY -------- Sensor Array Targeting Computer Power Shielding Assault Rifle Datajack [Rating: 13] Favorites ----------- Power Light Ion Engine Engine Light Ion Engine Propulsion Improved Aluminum Leg Leg Improved Aluminum Leg Utility Large Battery Device Improved Terrain Scanner Storage Large Battery Processor Targeting Computer Protection Power Shielding Weapon Heavy EM Pulse Gun Energy Gun Heavy EM Pulse Gun Ballistic Gun Assault Rifle Build | -11 -10 -10 ------- Run | Yrd Mat Sub Slots Evolved . | . . . Power . | . . . Propulsion . | . . . Utility . | . . . Weapon . | . . . Parts Attached 25 | 6 17 2 Power 3 | 1 2 . Engine 3 | 1 2 . Core . | . . . Reactor . | . . . Propulsion 6 | 2 4 . Treads . | . . . Leg 6 | 2 4 . Wheel . | . . . Hover . | . . . Flight . | . . . Utility 6 | 1 3 2 Device 2 | 1 . 1 Storage 1 | . 1 . Processor 1 | . . 1 Hackware . | . . . Protection 2 | . 2 . Artifact . | . . . Weapon 10 | 2 8 . Energy Gun 8 | 1 7 . Energy Cannon . | . . . Ballistic Gun 2 | 1 1 . Ballistic Cannon . | . . . Launcher . | . . . Special Weapon . | . . . Impact Weapon . | . . . Slashing Weapon . | . . . Piercing Weapon . | . . . Special Melee Weapon . | . . . Unidentified Prototypes . | . . . Parts Lost 4 | . . 4 Power . | . . . Propulsion 1 | . . 1 Utility . | . . . Weapon 3 | . . 3 Highest Loss Streak 3 | . . 3 To Critical Strikes . | . . . Average Backups 4 | 1 4 4 Power . | . . . Propulsion . | . . . Utility 2 | . 2 2 Weapon 1 | 1 1 . Tool/Special . | . . . Unused Backups 3 | . 1 2 Power . | . . . Propulsion . | . . . Utility 1 | . . 1 Weapon 1 | . 1 . Tool/Special 1 | . . 1 Average Slot Usage (%) 99 | . 99 99 Engine 14 | . 14 14 Leg 27 | . 28 27 Device 5 | . . 14 Storage 11 | . 13 7 Processor 1 | . . 4 Protection 9 | . 13 . Energy Gun 25 | . 26 23 Ballistic Gun 2 | . . 4 Peak Build Rating 13 | 8 11 13 Average Rating 10 | 3 10 11 On Entrance 6 | . 8 11 Naked Turns . | . . . Heaviest Build 15 | 7 15 15 Greatest Support 26 | 20 26 26 Greatest Overweight (x) . | . . . Average Overweight (x) . | . . . Largest Inventory Capacity 5 | 5 5 5 Average Capacity 5 | 5 5 5 Most Carried 5 | 3 5 5 Average Carried 4 | 1 4 4 Final Capacity 5 | 5 5 5 Final Carried 5 | 1 5 4 Class Distribution -------------------- 100% | Mutant Dominant Class ---------------- Mutant | -10/Materials Mutant | -10/Subcaves Resources | -11 -10 -10 ----------- Run | Yrd Mat Sub Matter Collected 511 | 264 180 67 Remotely . | . . . Salvage Created 860 | 67 642 151 Parts 64 | 9 45 10 Haulers Intercepted . | . . . Recyclers Shooed . | . . . Parts Field Recycled . | . . . Retrieved Matter . | . . . Parts Self-Destructed 5 | . . 5 Prevented . | . . . Kills | -11 -10 -10 ------- Run | Yrd Mat Sub Combat Hostiles Destroyed 20 | 1 16 3 Guns 15 | . 12 3 AOE 5 | 1 4 . Classes Destroyed 6 | 2 3 1 Worker 2 | . 2 . Tunneler 2 | 2 . . Watcher 3 | . 3 . Swarmer 5 | . 5 . Grunt 12 | 1 11 . Subdweller 3 | . . 3 Best Kill Streak 6 | 2 6 2 Combat Bots Only 5 | 1 5 2 Max Kills in Single Turn 4 | 1 4 1 Gunslinging . | . . . Exploded 3 | 1 3 . Melee . | . . . Uniques/NPCs Destroyed . | . . . Combat | -11 -10 -10 -------- Run | Yrd Mat Sub Hostile Shots Fired 64 | 3 35 26 Missed 20 | 1 8 11 Hits 44 | 2 27 15 Projectile 44 | 2 27 15 AOE 5 | . . 5 Damage Taken 909 | 31 326 552 Core 257 | . 93 164 Absorbed by Shields . | . . . Redirected to Shielding 10 | . 10 . Core Remaining (%) 100 | 100 . . Volleys Fired 68 | 9 45 14 Largest 2 | 2 2 2 Hottest 90 | 60 90 90 Shots Fired 135 | 18 90 27 Gun 135 | 18 90 27 Cannon . | . . . Launcher . | . . . Special . | . . . Kinetic 20 | 9 5 6 Thermal . | . . . Explosive . | . . . Electromagnetic 115 | 9 85 21 Robot Hit Streak 13 | 3 5 13 Robot Miss Streak 6 | 2 6 2 Penetration Max . | . . . Secondary Targets 3 | . 2 1 Max Gunslinging Chain 1 | . 1 1 Shots Hit Robots 72 | 10 41 21 Core Hits 34 | 4 23 7 Critical Kills . | . . . Critical Parts Destroyed . | . . . Critical Strikes 2 | . 2 . Corrupt 2 | . 2 . Melee Attacks . | . . . Impact . | . . . Slashing . | . . . Piercing . | . . . Sneak Attacks . | . . . Combat Hostiles . | . . . Follow-up Attacks . | . . . Damage Inflicted 1516 | 149 1010 357 Guns 1157 | 113 755 289 Cannons . | . . . Explosions 359 | 36 255 68 Melee . | . . . Ramming . | . . . Kinetic 81 | 31 12 38 Thermal 359 | 36 255 68 Explosive . | . . . Electromagnetic 1076 | 82 743 251 Impact . | . . . Slashing . | . . . Piercing . | . . . Highest Corruption . | . . . Average Corruption . | . . . Corruption Purged . | . . . Corruption Blocked . | . . . Overload Shots . | . . . Overflow Damage . | . . . Projectiles . | . . . Explosions . | . . . Melee . | . . . Knockbacks . | . . . Impact . | . . . Kinetic . | . . . Secondary . | . . . Self-Inflicted Damage 42 | 8 34 . Shots 2 | 1 1 . Rammed . | . . . Targets Rammed . | . . . Kicked . | . . . Crushed . | . . . Highest Temperature 222 | 40 222 . Average Temperature 54 | 22 59 . Received Heat Transfer 150 | 12 102 36 Siege Activations . | . . . Martial Activations . | . . . Shielding Activations . | . . . Robots Disrupted 1 | . . 1 Combat Hostiles 1 | . . 1 Robots Corrupted 1 | . 1 . Combat Hostiles . | . . . Parts Fried 3 | 1 . 2 Impact Corruptions . | . . . Robots Melted . | . . . Combat Hostiles . | . . . Parts Melted . | . . . Heat Transferred 450 | 50 350 50 Parts Sabotaged . | . . . Parts Stolen . | . . . Parts Stripped . | . . . Power Chain Reactions 6 | 1 4 1 Alert | -11 -10 -10 ------- Run | Yrd Mat Sub Maximum Alert Level . | . . . Low Security (%) 100 | 100 100 . Level 1 . | . . . Level 2 . | . . . Level 3 . | . . . Level 4 . | . . . Level 5 . | . . . High Security . | . . . Max Security . | . . . Peak Influence 176 | 20 176 . Initial . | . . . Average 76 | 3 80 . Influence Increases 503 | 31 472 . Destroy 0b10 Robot/C 340 | 20 320 . Destroy 0b10 Robot/NC 35 | 10 25 . Destroy Leader 66 | . 66 . Disable Machine 45 | . 45 . Destroy Structure 17 | 1 16 . Influence Decreases 503 | 30 332 141 Entered New Map 70 | . 1 69 Time Decay 433 | 30 331 72 Squads Dispatched 5 | . 5 . Investigation 3 | . 3 . Extermination . | . . . Reinforcement 2 | . 2 . Assault . | . . . Garrison . | . . . Intercept . | . . . Searches Triggered . | . . . Construction Impeded . | . . . Haulers Reinforced . | . . . Active Scanning Responses . | . . . Cargo Convoy Interrupts . | . . . Stealth | -11 -10 -10 --------- Run | Yrd Mat Sub Distress Signals . | . . . Communications Jammed . | . . . Distress Signals . | . . . Times Spotted 36 | 1 29 6 Peak Tracking Total 5 | 1 5 3 Tactical Retreats . | . . . Traps | -11 -10 -10 ------- Run | Yrd Mat Sub Traps Triggered 5 | . 4 1 Indirectly . | . . . Trap Hack Attempts . | . . . Triggered . | . . . Disarmed . | . . . Reprogrammed . | . . . Reused . | . . . Traps Extracted . | . . . Installed . | . . . Triggered . | . . . Machines | -11 -10 -10 ---------- Run | Yrd Mat Sub Machines Disabled 3 | . 3 . Max in Single Turn 1 | . 1 . Machines Repaired . | . . . Machines Dismantled . | . . . Machines Sabotaged . | . . . Overloaded Fab Kills . | . . . Hacking | -11 -10 -10 --------- Run | Yrd Mat Sub Machines Accessed 4 | . 3 1 Terminals 3 | . 3 . Fabricators . | . . . Repair Stations . | . . . Recycling Units . | . . . Scanalyzers . | . . . Garrison Access . | . . . Total Hacks 7 | . 4 3 Successful 4 | . 1 3 Failed 3 | . 3 . Catastrophic . | . . . Database Lockouts . | . . . Manual 1 | . . 1 Terminals 4 | . 4 . Fabricators . | . . . Repair Stations . | . . . Recycling Units . | . . . Scanalyzers . | . . . Garrison Access . | . . . Terminal Hacks 4 | . 1 3 Record 4 | . 1 3 Fabricator Hacks . | . . . Repair Station Hacks . | . . . Recycling Unit Hacks . | . . . Scanalyzer . | . . . Garrison Access Hacks . | . . . Unauthorized Hacks . | . . . Terminals . | . . . Fabricators . | . . . Repair Stations . | . . . Recycling Units . | . . . Scanalyzers . | . . . Garrison Access . | . . . Data Cores Recovered . | . . . Used . | . . . Hacking Detections 1 | . 1 . Full Trace Events . | . . . Feedback Events . | . . . Feedback Blocked . | . . . Robot Schematics Acquired . | . . . Robots Built . | . . . Authchips . | . . . Time . | . . . Total Robot Build Rating . | . . . Part Schematics Acquired . | . . . Parts Built . | . . . Authchips . | . . . Time . | . . . Total Part Build Rating . | . . . Parts Repaired . | . . . Time . | . . . Parts Recycled . | . . . Recycled Matter . | . . . Retrieved Matter . | . . . Retrieved Components . | . . . Parts Scanalyzed . | . . . Part Schematics Acquired . | . . . Parts Damaged . | . . . Bothacking | -11 -10 -10 ------------ Run | Yrd Mat Sub Used RIF Installer . | . . . Robots Hacked . | . . . Non-combat . | . . . Combat . | . . . Robot Hacks Applied . | . . . Relay Couplers Released . | . . . Fabnet Peak Effective % . | . . . Robots Rewired . | . . . Allies Hacked . | . . . Hacks Repelled . | . . . Allies | -11 -10 -10 -------- Run | Yrd Mat Sub Total Allies . | . . . Largest Group . | . . . Highest-Rated Group . | . . . Highest-Rated Ally . | . . . Total Orders . | . . . Ally Attacks . | . . . Total Damage . | . . . Kills . | . . . Allies Corrupted . | . . . Allies Melted . | . . . Intel | -11 -10 -10 ------- Run | Yrd Mat Sub Active Infowar (turns) 1505 | 12 86 1407 Sensors 704 | . . 704 Terrain 995 | 12 86 897 Robot Analysis Total . | . . . Derelict Logs Recovered 2 | . . 2 Drone Launches . | . . . Drone Recoveries . | . . . Exploration | -11 -10 -10 ------------- Run | Yrd Mat Sub Turns Passed 4529 | 171 2873 1485 Spaces Moved 2056 | 126 1560 370 Core 25 | 25 . . Treads . | . . . Legs 2031 | 101 1560 370 Wheels . | . . . Hover . | . . . Flight . | . . . Fastest Speed 50 | 50 120 120 Average Speed 119 | 106 120 120 Slowest Speed 120 | 120 120 120 Overloaded Moves . | . . . Propulsion Burnouts . | . . . Robots Hopped . | . . . Potential Cave-ins . | . . . Cave-ins Triggered . | . . . Exploration Rate (%) 40 | 7 99 15 Regions Visited 2 Branch Regions 1 Pre-discovered Areas 1 | . . 1 Known Exits Taken . | . . . Unknown Exits Taken 2 | 1 1 . Scrap Searched . | . . . Spaces Dug . | . . . Terrain Destroyed 23 | 3 14 6 Melee . | . . . Projectile . | . . . AOE 23 | 3 14 6 Terrain Rammed . | . . . Walls Destroyed . | . . . Machines Disabled . | . . . Actions | -11 -10 -10 --------- Run | Yrd Mat Sub Total 4002 | 147 2475 1380 Wait 1812 | . 829 983 Move 2054 | 125 1559 370 Hop . | . . . Pick Up 20 | 7 10 3 Fast Attach 2 | . 2 . Attach 8 | 6 1 1 Detach . | . . . Swap 20 | . 14 6 Drop 18 | . 15 3 Fire 68 | 9 45 14 Melee . | . . . Ram . | . . . Kick . | . . . Crush . | . . . Escape Stasis . | . . . Rewire . | . . . Trap . | . . . Miscellaneous . | . . . Route ------- -11/Scrapyard -10/Materials (discovered 5 exits: [*Mat x3] / [*Min] / *Sub) -10/Subcaves (discovered 2 exits: [*Mat] / Rec) History --------- Turn | Location | Event 2 | -11/Scrapyard | Met Revision 17 83 | -11/Scrapyard | Discovered new exit (range 8) 172 | -11/Scrapyard | Entered Materials 317 | -10/Materials | Build established: Mutant 1270 | -10/Materials | Discovered new exit (range 4) 1282 | -10/Materials | Discovered new exit (range 16) 2072 | -10/Materials | Discovered new exit (range 4) 2128 | -10/Materials | Discovered new exit (range 9) 2229 | -10/Materials | Discovered new exit (range 15) 3045 | -10/Materials | Entered Subcaves 3046 | -10/Subcaves | Approached by a straggling Scientist 3055 | -10/Subcaves | Learned location of Storage (-7) 4044 | -10/Subcaves | Core integrity fell below 50% 4136 | -10/Subcaves | Discovered new exit (range 13) 4379 | -10/Subcaves | Identified exit to Recycling 4472 | -10/Subcaves | Visited Clippyterm 4515 | -10/Subcaves | Ambushed by Subdweller buried in earth 4529 | -10/Subcaves | Core integrity fell below 20% 4530 | -10/Subcaves | Destroyed by 8E-MRM(R) with Subdweller Laser Last Messages --------------- There must be something fundamentally wrong with the algorithm, because no matter how much data I collect to feed it, half the time it still manages to suggest unhelpful sample queries and responses. --DD-NU8 >>Record! "Trash" It looks like you need to recycle something, would you like help? Data stored: Recycling entrances (x1). >>Record! "Bogan" It looks like you're interested in the dark side, V4-D3R would be pleased, though I don't think they're in the habit of teaching apprentices. BN-7DS(R): "ARGHSUB!" BN-7DS(R) shuts down. Assault Rifle destroyed. BN-7DS(R) destroyed. Hvy. EM Pulse Gun destroyed. Imp. Aluminum Leg destroyed. Map ----- +----------------------------------------------------+ | ?????????????????????????????????????????????????? | | ?????????????????????????????????????????????????? | | ?????????????????????????????????????????????????? | | ?????????????????????????????????????????????????? | | ?????????????????????????????????????????????????? | | ?????????????????????????????????????????????????? | | ?????????????????????????????????????????????????? | | ?????????????????????????????????????????????????? | | ?????????????????????????????????????????????????? | | ?????????????????????????????????????????????????? | | ?????????????????????????????????????????????????? | | ?????????????????????????????????????????????????? | | ???????????????????????????????????????????????#?? | | ?????????????????????????????????????????????## ?? | | ????????????????????????????????????????????## ?? | | ????????????????????????????????????????????# ?? | | ?????????????????????????????#######????????# ?? | | ?????????????????????????????#"""""#????????# ?? | | ?????????????????????????????#""X""#???????## #?? | | ?????????????????#########???#" "#???????# #?? | | ???????????????### ####### ###???????? ##? | | ???????????????# ### ###????????? #? | | ??????????????## ## #???####### #? | | ???????????#### ##### ## # ## | | ??????????## R # | | ??????????# R @ # | | ??????????# ## &% ;;### # # ## | | ??????????# ?# ;##?############## ## | | ??????????# ??# ; ##??????????????## | | ????????? ??# # ###??????????????## | | ????????# ???####### #####????????????????# | | ????????# ?????????##?????????????????????# | | ???????? ?????????????????????????????????# | | ??????? ?????????????????????????????????## | | ?????? ??????????????????????????????????## | | ????? ??????????????????????????????????# | | ????#####???????????????????????????????????### | | ??????????????????????????????????????????????# | | ??????????????????????????????????????????????# | | ?????????????????????????????????????????????# | | ?????????????????????????????????????????????# | | ?????????????????????????????????????????????##### | | ?????????????????????????????????????????????????? | | ?????????????????????????????????????????????????? | | ?????????????????????????????????????????????????# | | ?????????????????????????????????????????????????? | | ?????????????????????????????????????????????????? | | ?????????????????????????????????????????????????# | | ?????????????????????????????????????????????????? | | ????????????????????????????????????????????????#? | +----------------------------------------------------+ Best States ------------- Heat Dissipation 25 Energy Generation 10 Energy Capacity 450 Matter Stores 300 Matter Capacity 300 Sight Range 16 Robot Scan Range 14 Terrain Scan Range 16 Terrain Scan Density 10 Power Shielding 33 Evasion (%) 55 Targeting Accuracy 5 Item Schematics ----------------- None Robot Schematics ------------------ None Fabricated ------------ Nothing Repaired ---------- Nothing Alien Tech Used ----------------- None Achievements -------------- Crack Shot Power Corrupts Uninvited Guest Challenges ------------ None Game ------ Seed WardroneNetworkedChip Manual? 0 Play Time 00:43:23 Cumulative 1.9 hours Start 2025.08.16 @ 13:05:04 End 2025.08.17 @ 13:14:16 Sessions 3 Manual Loads 0 Difficulty Rogue Special Mode None Game No. 2 Rogue 2 Adventurer 0 Explorer 0 Win Type - Total 0 Types 0/0/0/0/0/0/0/0/0/0 Lore% 0 Gallery% 2 Achievement% 2 Wizard Run 0 Options --------- Layout 1 ASCII 0 Keyboard 0 Movement Arrows Keybinds 0 Fullscreen 1 Font 48/Tamsyn Map View 50x35 Zoom Use 0% Tactical HUD 0 Map Filters NONE Filters NONE Steam 1 RUN: 5838f623-74bc-4703-b685-e9ec64eed83e